fUSD/lending_fUSD_20260202
["ID","MTS","AMOUNT","RATE_DAILY","PERIOD"]
[404319327,1770056745461,500.0,0.00010615,2]
[404319328,1770056745513,500.0,0.00010615,2]
[404319329,1770056745568,500.0,0.00010615,2]
[404319330,1770056745631,500.0,0.00010615,2]
[404319331,1770056745713,500.0,0.00010615,2]
[404319332,1770056755605,212.19825022,0.00010516,2]
[404319333,1770056761802,300.0,0.00010615,2]
[404319334,1770056763524,252.37620023,0.00010615,2]
[404319335,1770056763572,500.0,0.00010615,2]
[404319336,1770056763621,500.0,0.00010615,2]
[404319337,1770056763670,500.0,0.00010615,2]
[404319338,1770056763729,500.0,0.00010615,2]
[404319339,1770056763783,500.0,0.00010615,2]
[404319340,1770056763836,500.0,0.00010615,2]
[404319341,1770056764238,94.17769705,0.00010615,2]
[404319342,1770056764271,454.60951636,0.00010615,2]
[404319343,1770056764353,500.0,0.00010615,2]
[404319344,1770056764440,500.0,0.00010615,2]
[404319345,1770056764496,500.0,0.00010615,2]
[404319346,1770056764565,500.0,0.00010615,2]
[404319347,1770056764626,500.0,0.00010615,2]
[404319348,1770056764691,500.0,0.00010615,2]
[404319349,1770056764749,500.0,0.00010615,2]
[404319350,1770056773487,6045.40048364,9.873e-05,2]
[404319351,1770056773511,10000.01,9.873e-05,2]
[404319352,1770056773536,10000.01,9.873e-05,2]
[404319353,1770056773561,7343.49951636,9.873e-05,2]
[404319354,1770056780905,176.66334016,0.00010615,2]
[404319356,1770056796208,855.18096576,0.00010516,2]
[404319357,1770056806911,403.65540019,0.00010615,2]
[404319358,1770056808269,500.0,0.00010615,2]
[404319359,1770056808616,175.66084999,0.00010615,2]
[404319360,1770056809541,500.0,0.00010615,2]
[404319361,1770056810923,45.34992754,0.00010615,2]
[404319362,1770056810947,211.6725012,0.00010615,2]
[404319363,1770056811036,290.17,9.886e-05,2]
[404319364,1770056811318,290.17,0.00010435,2]
[404319365,1770056812728,500.0,0.00010615,2]
[404319366,1770056812785,500.0,0.00010615,2]
[404319367,1770056812836,500.0,0.00010615,2]
[404319368,1770056812915,500.0,0.00010615,2]
[404319369,1770056812978,500.0,0.00010615,2]
[404319370,1770056813030,500.0,0.00010615,2]
[404319371,1770056813100,180.19147362,0.00010615,2]
[404319372,1770056813156,500.0,0.00010615,2]
[404319373,1770056813207,500.0,0.00010615,2]
[404319374,1770056813307,500.0,0.00010615,2]
[404319375,1770056821764,150.0,0.00010615,2]
[404319376,1770056825740,300.0,0.00010615,2]
[404319377,1770056826524,587.41638515,0.00010516,2]
[404319378,1770056861013,344.123,0.00010516,2]
[404319379,1770056864749,3907.62329182,0.00013,15]
[404319380,1770056864777,8135.34021614,0.00013,15]
[404319381,1770056881544,300.0,0.00010615,2]
[404319383,1770056894682,1934.27557243,0.0001,2]
[404319384,1770056896473,392.05907879,7.888e-05,2]
[404319385,1770056906372,519.93198881,0.0001,2]
[404319386,1770056906404,2219.63720876,0.0001,2]
[404319388,1770056916346,7780.37279124,0.0001,2]
[404319389,1770056916369,10000.01,0.0001,2]
[404319390,1770056916391,5047.52989089,0.0001,2]
[404319391,1770056916435,1105.8180108,0.00010516,2]
[404319392,1770056919048,343.88268804,0.00010516,2]
[404319395,1770056935985,234.87,0.000134,5]
[404319396,1770056937093,234.87,0.000135,4]
[404319397,1770056937811,163.16,0.000129,4]
[404319398,1770056938630,150.0,0.000106,2]
[404319399,1770056941009,3352.77941027,9.829e-05,2]
[404319400,1770056941034,7688.25058973,9.829e-05,2]
[404319401,1770056941620,300.0,0.00010615,2]
[404319404,1770056959816,920.76651104,0.00010516,2]
[404319405,1770056973943,1090.99289923,0.00010516,2]
[404319406,1770056973970,1409.00710077,0.00010516,2]
[404319407,1770056992213,307.29973171,0.00010516,2]
[404319408,1770057001814,1200.0,0.00010615,2]
[404319409,1770057001849,300.0,0.00010615,2]
[404319410,1770057001885,300.0,0.00010615,2]
[404319411,1770057001931,300.0,0.00010615,2]
[404319412,1770057002051,150.0,0.00010615,2]
[404319413,1770057002834,300.0,0.00010615,2]
[404319414,1770057005166,186.15795245,0.00010615,2]
[404319415,1770057006067,658.27112465,0.00010606,2]
[404319417,1770057015081,500.0,0.00010615,2]
[404319418,1770057015122,385.84360594,0.00010615,2]
[404319419,1770057015165,500.0,0.00010615,2]
[404319420,1770057015205,500.0,0.00010615,2]
[404319421,1770057015379,500.0,0.00010615,2]
[404319422,1770057015601,500.0,0.00010615,2]
[404319423,1770057015650,500.0,0.00010615,2]
[404319424,1770057015722,500.0,0.00010615,2]
[404319425,1770057021023,152.66564789,0.000106,2]
[404319426,1770057023034,635.52990035,0.00010606,2]
[404319427,1770057027486,215.23493624,0.00010615,2]
[404319428,1770057027515,284.76506376,0.00010615,2]
[404319429,1770057027557,385.84360594,0.00010615,2]
[404319439,1770057031682,-2149.4556397,0.00010616,2]
[404319440,1770057031693,-1378624.366364,0.00010616,2]
[404319441,1770057031704,-179546.9174658,0.00010616,2]
[404319442,1770057031715,-130311.70612264,0.00010616,2]
[404319443,1770057031726,-125684.95515431,0.00010616,2]
[404319444,1770057031750,-1342.64096061,0.00010616,2]
[404319445,1770057031761,-344.81,0.00010616,2]
[404319446,1770057031774,-6374.08985714,0.00010616,2]
[404319447,1770057031799,-282.33286881,0.00010616,2]
[404319448,1770057031811,-314.004,0.00010616,2]
[404319449,1770057031822,-824.83,0.00010616,2]
[404319450,1770057031857,-477.97880591,0.00010616,2]
[404319451,1770057031869,-2622.47789896,0.00010616,2]
[404319452,1770057031881,-1135.02162742,0.00010616,2]
[404319453,1770057031891,-1005.3639732,0.00010616,2]
[404319454,1770057031904,-284.15203215,0.00010616,2]
[404319455,1770057031915,-2773.96661148,0.00010616,2]
[404319456,1770057031932,-590.82,0.00010616,2]
[404319457,1770057031944,-1060.92728506,0.00010616,2]
[404319458,1770057031956,-834.98957114,0.00010616,2]
[404319459,1770057031971,-1795.22834089,0.00010616,2]
[404319462,1770057031981,-1794.47750331,0.00010616,2]
[404319506,1770057036757,1332.43130384,0.00010516,2]
[404319508,1770057037744,-767.67186294,0.00010616,2]
[404319509,1770057037756,-493335.62822986,0.00010616,2]
[404319510,1770057037803,-2519.4917276,0.00010616,2]
[404319511,1770057037815,-983252.37050436,0.00010616,2]
[404319512,1770057037827,-2379.9549,0.00010616,2]
[404319513,1770057037836,-43152.7974,0.00010616,2]
[404319514,1770057037847,-174.66687349,0.00010616,2]
[404319515,1770057037859,-300.0,0.00010616,2]
[404319516,1770057037870,-283.67074019,0.00010616,2]
[404319517,1770057037879,-250.0,0.00010616,2]
[404319518,1770057037889,-1288.92355873,0.00010616,2]
[404319519,1770057037899,-1722.44010177,0.00010616,2]
[404319520,1770057037908,-778.86477401,0.00010616,2]
[404319521,1770057037920,-959.21293518,0.00010616,2]
[404319522,1770057037930,-237.0,0.00010616,2]
[404319523,1770057037939,-300.0,0.00010624,2]
[404319524,1770057037949,-300.0,0.00010624,2]
[404319525,1770057037959,-300.0,0.00010624,2]
[404319526,1770057037968,-635.52990035,0.00010646,2]
[404319527,1770057037978,-345038.1709274,0.00010656,2]
[404319528,1770057037987,-250.0,0.00010676,2]
[404319529,1770057037996,-268.67078659,0.000107,2]
[404319530,1770057038006,-3403.59312031,0.00010709,2]
[404319531,1770057038020,-8982.1360946,0.00010709,2]
[404319533,1770057038030,-15845.55275748,0.00010709,2]
[404319535,1770057038040,-23703.99926492,0.00010709,2]
[404319537,1770057038050,-32072.3469,0.00010709,2]
[404319540,1770057038063,-747067.50461473,0.00010716,2]
[404319541,1770057038072,-10000.0,0.00010716,2]
[404319543,1770057038083,-33288.2505,0.00010716,2]
[404319545,1770057038093,-7160.9476,0.00010716,2]
[404319546,1770057038103,-308.0088,0.00010716,2]
[404319547,1770057038113,-730.0026154,0.00010716,2]
[404319548,1770057038123,-200.0,0.00010716,2]
[404319549,1770057038134,-200.0,0.00010716,2]
[404319551,1770057038144,-9999.99,0.00010722,2]
[404319552,1770057038153,-9999.99,0.00010722,2]
[404319553,1770057038162,-499.99,0.00010722,2]
[404319554,1770057038172,-1553.29,0.00010722,2]
[404319555,1770057038182,-427.52,0.00010722,2]
[404319556,1770057038191,-441.47,0.00010746,2]
[404319557,1770057038200,-500.0,0.00010746,2]
[404319558,1770057038210,-5230.06,0.00010746,2]
[404319559,1770057038219,-14610.22,0.00010746,2]
[404319560,1770057038229,-3185.25,0.00010746,2]
[404319561,1770057038239,-9999.99,0.00010746,2]
[404319562,1770057038248,-1182.49,0.00010746,2]
[404319563,1770057038257,-299.99,0.00010746,2]
[404319564,1770057038267,-1201.39,0.00010746,2]
[404319565,1770057038276,-25445.25,0.00010746,2]
[404319566,1770057038285,-9999.99,0.00010746,2]
[404319567,1770057038295,-999.99,0.00010746,2]
[404319568,1770057038304,-9999.99,0.00010746,2]
[404319569,1770057038314,-4999.99,0.00010746,2]
[404319570,1770057038323,-348.93,0.00010746,2]
[404319571,1770057038332,-150.99,0.00010746,2]
[404319572,1770057038342,-150.99,0.00010746,2]
[404319573,1770057038351,-2979.54,0.00010746,2]
[404319574,1770057038366,-49999.99,0.00010746,2]
[404319575,1770057038376,-3847.13,0.00010746,2]
[404319576,1770057038385,-1609.62,0.00010746,2]
[404319577,1770057038399,-260706.89,0.00010788,2]
[404319578,1770057038408,-7121.68,0.00010788,2]
[404319579,1770057038418,-9156.55,0.00010788,2]
[404319580,1770057038428,-14009.2,0.00010788,2]
[404319581,1770057038437,-1539.28,0.00010788,2]
[404319582,1770057038447,-1470.33,0.00010788,2]
[404319583,1770057038457,-34046.57,0.00010788,2]
[404319584,1770057038467,-1469.51,0.00010789,2]
[404319585,1770057038477,-6998.0119,0.00010795,2]
[404319586,1770057038487,-1029.34213251,0.000108,2]
[404319587,1770057038498,-200.0,0.00010809,2]
[404319588,1770057038507,-500.0,0.00010809,2]
[404319589,1770057038518,-500.0,0.00010809,2]
[404319590,1770057038527,-500.0,0.00010809,2]
[404319591,1770057038537,-500.0,0.00010809,2]
[404319592,1770057038547,-500.0,0.00010809,2]
[404319593,1770057038556,-500.0,0.00010809,2]
[404319594,1770057038566,-500.0,0.00010809,2]
[404319595,1770057038575,-500.0,0.00010809,2]
[404319596,1770057038584,-500.0,0.00010809,2]
[404319597,1770057038594,-500.0,0.00010809,2]
[404319598,1770057038605,-500.0,0.00010809,2]
[404319599,1770057038615,-151.0,0.00010809,2]
[404319600,1770057038625,-151.0,0.00010809,2]
[404319601,1770057038635,-151.0,0.00010809,2]
[404319602,1770057038645,-151.0,0.00010809,2]
[404319603,1770057038655,-151.0,0.00010809,2]
[404319604,1770057038664,-151.0,0.00010809,2]
[404319605,1770057038673,-151.0,0.00010809,2]
[404319606,1770057038683,-500.0,0.00010809,2]
[404319607,1770057038693,-151.0,0.00010809,2]
[404319608,1770057038702,-151.0,0.00010809,2]
[404319609,1770057038712,-151.0,0.00010809,2]
[404319610,1770057038722,-151.0,0.00010809,2]
[404319611,1770057038731,-200.0,0.00010809,2]
[404319612,1770057038740,-151.0,0.00010809,2]
[404319613,1770057038751,-151.0,0.00010809,2]
[404319614,1770057038764,-500.0,0.00010809,2]
[404319615,1770057038774,-151.0,0.00010809,2]
[404319616,1770057038784,-500.0,0.00010809,2]
[404319617,1770057038795,-151.0,0.00010809,2]
[404319618,1770057038805,-500.0,0.00010809,2]
[404319619,1770057038815,-151.0,0.00010809,2]
[404319620,1770057038825,-500.0,0.00010809,2]
[404319621,1770057038834,-151.0,0.00010809,2]
[404319622,1770057038845,-500.0,0.00010809,2]
[404319623,1770057038855,-151.0,0.00010809,2]
[404319624,1770057038864,-500.0,0.00010809,2]
[404319625,1770057038875,-151.0,0.00010809,2]
[404319626,1770057038884,-500.0,0.00010809,2]
[404319627,1770057038895,-151.0,0.00010809,2]
[404319628,1770057038904,-500.0,0.00010809,2]
[404319629,1770057038913,-151.0,0.00010809,2]
[404319630,1770057038923,-500.0,0.00010809,2]
[404319631,1770057038932,-151.0,0.00010809,2]
[404319632,1770057038942,-500.0,0.00010809,2]
[404319633,1770057038951,-151.0,0.00010809,2]
[404319634,1770057038964,-500.0,0.00010809,2]
[404319635,1770057038974,-151.0,0.00010809,2]
[404319636,1770057038983,-151.0,0.00010809,2]
[404319637,1770057038993,-151.0,0.00010809,2]
[404319638,1770057039003,-151.0,0.00010809,2]
[404319639,1770057039012,-151.0,0.00010809,2]
[404319640,1770057039021,-151.0,0.00010809,2]
[404319641,1770057039031,-151.0,0.00010809,2]
[404319642,1770057039041,-151.0,0.00010809,2]
[404319643,1770057039051,-135635.863244,0.0001081,2]
[404319644,1770057039065,-1000.0,0.00010816,2]
[404319645,1770057039076,-84421.6180525,0.00010816,2]
[404319646,1770057039087,-200.0,0.00010823,2]
[404319647,1770057039096,-200.0,0.00010823,2]
[404319648,1770057039106,-19168.15,0.00010848,2]
[404319649,1770057039116,-406.0,0.00010849,2]
[404319650,1770057039126,-1881.0,0.00010868,2]
[404319651,1770057039137,-620.0,0.00010889,2]
[404319652,1770057039147,-205.0,0.00010902,2]
[404319653,1770057039158,-166.66,0.00010905,2]
[404319654,1770057039171,-1640.0,0.00010911,2]
[404319655,1770057039181,-373.0,0.00010924,2]
[404319656,1770057039191,-200.0,0.00010931,2]
[404319657,1770057039201,-200.0,0.00010931,2]
[404319658,1770057039210,-369.0,0.00010933,2]
[404319659,1770057039219,-1463.0,0.00010945,2]
[404319660,1770057039229,-500.0,0.00010959,2]
[404319661,1770057039238,-493.01262256,0.00010959,2]
[404319662,1770057039247,-184.11,0.00010959,2]
[404319663,1770057039256,-290.17,0.00010985,2]
[404319664,1770057039266,-500.0,0.0001102,2]
[404319665,1770057039276,-441.47,0.0001102,2]
[404319666,1770057039285,-459.0,0.00011036,2]
[404319667,1770057039295,-200.0,0.00011041,2]
[404319673,1770057039304,-200.0,0.00011041,2]
[404319674,1770057039596,-467.82203208,0.00011058,2]
[404319675,1770057039606,-344.0,0.00011058,2]
[404319676,1770057039616,-45904.86054701,0.00011099,2]
[404319677,1770057039625,-45904.86054701,0.00011099,2]
[404319678,1770057039636,-200.0,0.00011151,2]
[404319679,1770057039645,-200.0,0.00011151,2]
[404319680,1770057039662,-166.66,0.00011253,2]
[404319681,1770057039675,-500.0,0.00011294,2]
[404319682,1770057039684,-441.47,0.00011294,2]
[404319683,1770057039694,-200.0,0.00011357,2]
[404319684,1770057039705,-500.0,0.00011357,2]
[404319685,1770057039715,-200.0,0.00011357,2]
[404319686,1770057039726,-290.17,0.00011534,2]
[404319687,1770057039735,-500.0,0.00011547,2]
[404319688,1770057039746,-500.0,0.00011568,2]
[404319689,1770057039757,-441.47,0.00011568,2]
[404319690,1770057039768,-166.66,0.00011602,2]
[404319691,1770057039777,-255.0,0.00011645,2]
[404319692,1770057039787,-420.0,0.00011669,2]
[404319693,1770057039798,-1680.0,0.00011676,2]
[404319694,1770057039809,-195.0,0.00011677,2]
[404319695,1770057039819,-195.0,0.00011677,2]
[404319696,1770057039829,-150.33828097,0.00011677,2]
[404319697,1770057039842,-250.0,0.00011677,2]
[404319698,1770057039851,-500.0,0.00011677,2]
[404319699,1770057039861,-500.0,0.00011677,2]
[404319700,1770057039870,-500.0,0.00011677,2]
[404319701,1770057039881,-193.0,0.00011677,2]
[404319702,1770057039891,-300.0,0.00011677,2]
[404319703,1770057039901,-500.0,0.00011677,2]
[404319704,1770057039910,-539.56453595,0.00011677,2]
[404319705,1770057039920,-195.0,0.00011677,2]
[404319706,1770057039930,-195.0,0.00011677,2]
[404319707,1770057039942,-456.97,0.00011693,2]
[404319708,1770057039953,-635.52990035,0.00011822,2]
[404319709,1770057039963,-345038.1709274,0.00011832,2]
[404319710,1770057039974,-160.87643987,0.00011838,2]
[404319711,1770057039984,-500.0,0.00011842,2]
[404319712,1770057039994,-441.47,0.00011842,2]
[404319713,1770057040006,-200.0,0.00011905,2]
[404319714,1770057040016,-500.0,0.00011905,2]
[404319715,1770057040027,-200.0,0.00011905,2]
[404319716,1770057040037,-166.66,0.0001195,2]
[404319717,1770057040048,-290.17,0.00012083,2]
[404319718,1770057040058,-500.0,0.00012116,2]
[404319719,1770057040070,-441.47,0.00012116,2]
[404319720,1770057040078,-2490.41,0.00012175,2]
[404319721,1770057040089,-151.0,0.0001229,2]
[404319722,1770057040100,-322.6107,0.0001229,2]
[404319723,1770057040110,-500.0,0.0001229,2]
[404319724,1770057040120,-500.0,0.0001229,2]
[404319725,1770057040130,-500.0,0.0001229,2]
[404319726,1770057040140,-500.0,0.0001229,2]
[404319727,1770057040149,-500.0,0.0001229,2]
[404319728,1770057040160,-500.0,0.0001229,2]
[404319729,1770057040169,-500.0,0.0001229,2]
[404319730,1770057040179,-500.0,0.0001229,2]
[404319731,1770057040189,-500.0,0.0001229,2]
[404319732,1770057040201,-500.0,0.0001229,2]
[404319733,1770057040215,-500.0,0.0001229,2]
[404319734,1770057040226,-209.40437684,0.0001229,2]
[404319735,1770057040236,-250.0,0.0001229,2]
[404319736,1770057040248,-209.40437684,0.0001229,2]
[404319737,1770057040257,-250.0,0.0001229,2]
[404319738,1770057040267,-250.0,0.0001229,2]
[404319739,1770057040277,-250.0,0.0001229,2]
[404319740,1770057040287,-250.0,0.0001229,2]
[404319741,1770057040296,-250.0,0.0001229,2]
[404319742,1770057040306,-250.0,0.0001229,2]
[404319743,1770057040316,-250.0,0.0001229,2]
[404319744,1770057040326,-250.0,0.0001229,2]
[404319745,1770057040336,-250.0,0.0001229,2]
[404319746,1770057040345,-250.0,0.0001229,2]
[404319747,1770057040355,-250.0,0.0001229,2]
[404319748,1770057040365,-250.0,0.0001229,2]
[404319749,1770057040374,-250.0,0.0001229,2]
[404319750,1770057040384,-1428.38747117,0.0001229,2]
[404319752,1770057040394,-250.0,0.0001229,2]
[404319754,1770057040403,-174.61919141,0.0001229,2]
[404319755,1770057040413,-250.0,0.0001229,2]
[404319756,1770057040423,-250.0,0.0001229,2]
[404319757,1770057040432,-578.20924308,0.0001229,2]
[404319758,1770057040442,-859.80605061,0.0001229,2]
[404319759,1770057040451,-209.40437684,0.0001229,2]
[404319760,1770057040460,-721.12765535,0.0001229,2]
[404319761,1770057040469,-166.66,0.00012299,2]
[404319762,1770057040479,-1000.0,0.00012321,2]
[404319763,1770057040489,-217.15233878,0.00012345,2]
[404319765,1770057040498,-500.0,0.0001239,2]
[404319766,1770057040508,-441.47,0.0001239,2]
[404319767,1770057040517,-225.18697532,0.000124,2]
[404319768,1770057040527,-200.0,0.00012453,2]
[404319769,1770057040537,-500.0,0.00012453,2]
[404319770,1770057040546,-200.0,0.00012453,2]
[404319771,1770057040556,-233.51889341,0.00012455,2]
[404319772,1770057040565,-242.15909246,0.0001251,2]
[404319773,1770057040575,-251.11897888,0.00012565,2]
[404319774,1770057040588,-260.4103811,0.0001262,2]
[404319775,1770057040599,-290.17,0.00012632,2]
[404319776,1770057040609,-500.0,0.00012664,2]
[404319777,1770057040619,-441.47,0.00012664,2]
[404319778,1770057040629,-270.0455652,0.00012675,2]
[404319779,1770057040638,-193705.37119555,0.0001269,2]
[404319780,1770057040648,-307.29973171,0.00012708,2]
[404319781,1770057040657,-280.03725112,0.0001273,2]
[404319782,1770057040667,-433.0,0.0001277,2]
[404319783,1770057040676,-290.39862941,0.00012785,2]
[404319784,1770057040686,-84421.6180525,0.00012795,2]
[404319785,1770057040695,-587.0,0.00012828,2]
[404319786,1770057040705,-151.0,0.00012838,2]
[404319787,1770057040714,-217.15233878,0.00012838,2]
[404319788,1770057040724,-1481.23780761,0.00012838,2]
[404319789,1770057040734,-181.08010149,0.00012838,2]
[404319790,1770057040743,-276.99112212,0.00012838,2]
[404319791,1770057040753,-301.1433787,0.0001284,2]
[404319792,1770057040763,-500.0,0.00012842,2]
[404319793,1770057040774,-2351.0,0.00012844,2]
[404319794,1770057040783,-270.94,0.00012877,2]
[404319795,1770057040793,-500.0,0.00012938,2]
[404319796,1770057040802,-441.47,0.00012938,2]
[404319797,1770057040812,-98441.87,0.00013,2]
[404319798,1770057040821,-4433.94000455,0.00013,2]
[404319799,1770057040831,-200.0,0.00013001,2]
[404319800,1770057040841,-500.0,0.00013001,2]
[404319801,1770057040850,-200.0,0.00013001,2]
[404319802,1770057040860,-345038.1709274,0.00013009,2]
[404319803,1770057040870,-5353.89966494,0.0001305,2]
[404319804,1770057040880,-500.0,0.00013096,2]
[404319805,1770057040889,-160.29771235,0.00013111,2]
[404319806,1770057040900,-290.17,0.00013182,2]
[404319807,1770057040909,-500.0,0.00013212,2]
[404319808,1770057040920,-441.47,0.00013212,2]
[404319809,1770057040930,-1617.53493796,0.00013226,2]
[404319810,1770057040940,-150.0,0.0001332,2]
[404319811,1770057040950,-151.0,0.00013372,2]
[404319812,1770057040960,-230.16041742,0.00013386,2]
[404319813,1770057040975,-225.18697532,0.00013386,2]
[404319814,1770057040986,-1536.04360649,0.00013386,2]
[404319815,1770057040996,-187.78006525,0.00013386,2]
[404319816,1770057041005,-151.0,0.00013404,2]
[404319817,1770057041015,-151.0,0.00013404,2]
[404319818,1770057041027,-151.0,0.00013404,2]
[404319819,1770057041037,-343.5303085,0.00013414,2]
[404319820,1770057041047,-341.63207322,0.00013418,2]
[404319821,1770057041056,-3240.0,0.00013425,2]
[404319822,1770057041069,-500.0,0.00013486,2]
[404319823,1770057041078,-441.47,0.00013486,2]
[404319824,1770057041088,-183.76045452,0.000135,2]
[404319825,1770057041098,-200.0,0.000135,2]
[404319826,1770057041108,-730.00261536,0.00013512,2]
[404319827,1770057041118,-200.0,0.00013549,2]
[404319828,1770057041128,-500.0,0.00013549,2]
[404319829,1770057041138,-208.65826531,0.00013549,2]
[404319830,1770057041148,-500.0,0.00013562,2]
[404319831,1770057041157,-500.0,0.00013616,2]
[404319832,1770057041167,-200.0,0.00013635,2]
[404319833,1770057041180,-334.5472959,0.00013659,2]
[404319834,1770057041190,-500.0,0.00013698,2]
[404319835,1770057041200,-500.0,0.00013698,2]
[404319836,1770057041210,-500.0,0.00013698,2]
[404319837,1770057041220,-500.0,0.00013698,2]
[404319838,1770057041231,-500.0,0.00013698,2]
[404319839,1770057041244,-500.0,0.00013698,2]
[404319840,1770057041254,-500.0,0.00013698,2]
[404319841,1770057041264,-500.0,0.00013698,2]
[404319842,1770057041278,-500.0,0.00013698,2]
[404319843,1770057041288,-500.0,0.00013698,2]
[404319844,1770057041298,-500.0,0.00013698,2]
[404319845,1770057041308,-630.82371033,0.00013698,2]
[404319846,1770057041317,-586.19962979,0.00013698,2]
[404319847,1770057041327,-500.0,0.00013698,2]
[404319848,1770057041337,-500.0,0.00013698,2]
[404319849,1770057041347,-500.0,0.00013698,2]
[404319850,1770057041356,-500.0,0.00013698,2]
[404319851,1770057041366,-500.0,0.00013698,2]
[404319852,1770057041378,-500.0,0.00013698,2]
[404319853,1770057041388,-500.0,0.00013698,2]
[404319854,1770057041397,-500.0,0.00013698,2]
[404319855,1770057041407,-500.0,0.00013698,2]
[404319856,1770057041416,-500.0,0.00013698,2]
[404319857,1770057041426,-500.0,0.00013698,2]
[404319858,1770057041436,-500.0,0.00013698,2]
[404319859,1770057041446,-500.0,0.00013698,2]
[404319860,1770057041455,-500.0,0.00013698,2]
[404319861,1770057041465,-520.98046437,0.00013698,2]
[404319862,1770057041474,-500.0,0.00013698,2]
[404319863,1770057041484,-500.0,0.00013698,2]
[404319864,1770057041493,-500.0,0.00013698,2]
[404319865,1770057041503,-500.0,0.00013698,2]
[404319866,1770057041512,-500.0,0.00013698,2]
[404319867,1770057041523,-500.0,0.00013698,2]
[404319868,1770057041533,-500.0,0.00013698,2]
[404319869,1770057041543,-500.0,0.00013698,2]
[404319870,1770057041552,-500.0,0.00013698,2]
[404319871,1770057041562,-500.0,0.00013698,2]
[404319872,1770057041573,-500.0,0.00013698,2]
[404319873,1770057041584,-500.0,0.00013698,2]
[404319874,1770057041593,-500.0,0.00013698,2]
[404319875,1770057041603,-500.0,0.00013698,2]
[404319876,1770057041613,-500.0,0.00013698,2]
[404319877,1770057041622,-500.0,0.00013698,2]
[404319878,1770057041632,-500.0,0.00013698,2]
[404319879,1770057041642,-317.29293236,0.00013698,2]
[404319880,1770057041651,-500.0,0.00013698,2]
[404319881,1770057041661,-500.0,0.00013698,2]
[404319882,1770057041671,-500.0,0.00013698,2]
[404319883,1770057041682,-500.0,0.00013698,2]
[404319884,1770057041692,-500.0,0.00013698,2]
[404319885,1770057041702,-500.0,0.00013698,2]
[404319886,1770057041713,-500.0,0.00013698,2]
[404319887,1770057041723,-500.0,0.00013698,2]
[404319888,1770057041732,-500.0,0.00013698,2]
[404319889,1770057041742,-500.0,0.00013698,2]
[404319890,1770057041752,-500.0,0.00013698,2]
[404319891,1770057041763,-500.0,0.00013698,2]
[404319892,1770057041777,-500.0,0.00013698,2]
[404319893,1770057041787,-500.0,0.00013698,2]
[404319894,1770057041798,-500.0,0.00013698,2]
[404319895,1770057041809,-500.0,0.00013698,2]
[404319896,1770057041818,-500.0,0.00013698,2]
[404319897,1770057041832,-500.0,0.00013698,2]
[404319898,1770057041842,-500.0,0.00013698,2]
[404319899,1770057041851,-500.0,0.00013698,2]
[404319900,1770057041861,-500.0,0.00013698,2]
[404319901,1770057041870,-500.0,0.00013698,2]
[404319902,1770057041880,-500.0,0.00013698,2]
[404319903,1770057041890,-500.0,0.00013698,2]
[404319904,1770057041899,-504.58121564,0.00013698,2]
[404319905,1770057041909,-500.0,0.00013698,2]